[Event "Summer Prague Open-A 2024"]
[Site "Prague"]
[Date "2024.08.06"]
[Round "6.1"]
[White "Nothnagel, Marian Can"]
[Black "Konopka, Michal"]
[Result "1-0"]
[Annotator "RC"]
[ECO "C43"]
[WhiteElo "2410"]
[BlackElo "2325"]
[PlyCount "81"]
[EventDate "2024.08.02"]
[EventType "swiss"]
[EventCountry "CZE"]
[SourceTitle "playchess.com"]
[Source "ChessBase"]
[SourceQuality "1"]
[TimeControl "40/5400+30:1800+30"]

1. e4 {[%emt 0:00:02]} e5 {[%emt 0:11:07]} 2. Nf3 {[%emt 0:00:06]} Nf6 {[%emt 0:02:54]} 3. d4 {[%emt 0:00:08]} Nxe4 {[%emt 0:01:38]} 4. Bd3 {[%emt 0:00:06]} Nc6 {[%emt 0:00:42]} 5. O-O {[%emt 0:00:23]} d5 {[%emt 0:01:56]} 6. dxe5 {[%emt 0:00:05]} Bg4 {[%emt 0:05:06]} 7. Nc3 {[%emt 0:02:23]} Nxc3 {[%emt 0:10:02]} 8. bxc3 {[%emt 0:00:04]} Be7 {[%emt 0:09:17]} 9. Re1 {[%emt 0:01:01]} O-O {[%emt 0:03:57]} 10. Rb1 {[%emt 0:06:08]} b6 {[%emt 0:10:47]} 11. h3 {[%emt 0:00:10]} Be6 {[%emt 0:17:31]} 12. Nd4 {[%emt 0:08:35]} Nxd4 {[%emt 0:01:09]} 13. cxd4 {[%emt 0:00:04]} Qd7 {[%emt 0:00:12]} 14. c3 {[%emt 0:07:54]} Bf5 {[%emt 0:06:47]} 15. Rb2 {[%emt 0:20:29]} Bxd3 {[%emt 0:01:03]} 16. Qxd3 {[%emt 0:00:04]} c5 {[%emt 0:00:15]} 17. Rbe2 {[%emt 0:00:21]} cxd4 {[%emt 0:00:12]} 18. cxd4 {[%emt 0:00:05]} Rac8 {[%emt 0:01:14]} 19. Bb2 {[%emt 0:15:42]} Rc4 {[%emt 0:04:07]} 20. e6 {[%emt 0:01:31]} fxe6 {[%emt 0:00:15]} 21. Rxe6 {[%emt 0:00:04]} Bh4 {[%emt 0:01:14]} 22. g3 {[%emt 0:00:09]} Bf6 {[%emt 0:01:15]} 23. Ba3 {[%emt 0:02:32]} Rfc8 {[%emt 0:01:17]} 24. Qf5 {[%emt 0:24:45]} R4c7 25. Qh5 {[%emt 0:00:54]} g6 {[%emt 0:01:52]} 26. Qf3 {[%emt 0:06:20]} Bxd4 {[%emt 0:03:39]} 27. Qf4 {[%emt 0:01:53]} Bc5 28. Bxc5 {[%emt 0:00:06]} bxc5 {[%emt 0:01:06]} 29. Qh4 Qf7 30. Re7 {[%emt 0:00:36]} Rxe7 {[%emt 0:04:19]} 31. Rxe7 {[%emt 0:00:04]} g5 {[%emt 0:00:06]} 32. Qxg5+ {[%emt 0:00:04]} Qg6 {[%emt 0:00:04]} 33. Qxd5+ {[%emt 0:00:09]} Kh8 {[%emt 0:00:07]} 34. Qe5+ {[%emt 0:01:16]} Kg8 {[%emt 0:00:02]} 35. Qd5+ {[%emt 0:01:38]} Kh8 {[%emt 0:00:25]} 36. Re6 {[%emt 0:00:07]} Qg7 {[%emt 0:00:29]} 37. Re4 {[%emt 0:00:22]} Qf6 {[%emt 0:00:49]} 38. Rf4 {[%emt 0:00:08]} Qg7 {[%emt 0:00:44]} 39. Kh2 {[%emt 0:00:25]} Qb2 40. Rf7 {[%emt 0:01:01]} Qd4 {[%emt 0:02:20]} 41. Qf5 {[%emt 0:30:08]} 1-0

[Event "Summer Prague Open-A 2024"]
[Site "Prague"]
[Date "2024.08.06"]
[Round "6.2"]
[White "Prokofiev, Valentyn"]
[Black "Walek, Petr"]
[Result "1-0"]
[Annotator "RC"]
[ECO "B36"]
[WhiteElo "2381"]
[BlackElo "2283"]
[PlyCount "79"]
[EventDate "2024.08.02"]
[EventType "swiss"]
[EventCountry "CZE"]
[SourceTitle "playchess.com"]
[Source "ChessBase"]
[SourceQuality "1"]
[TimeControl "40/5400+30:1800+30"]

1. Nf3 {[%emt 0:00:05]} c5 {[%emt 0:00:46]} 2. c4 {[%emt 0:00:04]} Nc6 {[%emt 0:04:12]} 3. d4 {[%emt 0:00:10]} cxd4 {[%emt 0:00:15]} 4. Nxd4 {[%emt 0:00:04]} Nf6 {[%emt 0:02:37]} 5. Nc3 {[%emt 0:00:04]} g6 {[%emt 0:02:00]} 6. e4 {[%emt 0:00:04]} Nxd4 {[%emt 0:00:04]} 7. Qxd4 {[%emt 0:00:04]} d6 {[%emt 0:00:08]} 8. Be2 {[%emt 0:03:39]} Bg7 {[%emt 0:00:06]} 9. O-O {[%emt 0:00:15]} O-O {[%emt 0:00:36]} 10. Bg5 {[%emt 0:01:23]} a5 {[%emt 0:18:57]} 11. Rad1 {[%emt 0:06:12]} a4 {[%emt 0:08:55]} 12. Qe3 {[%emt 0:06:16]} Qa5 {[%emt 0:08:35]} 13. Bxf6 {[%emt 0:21:27]} Bxf6 {[%emt 0:01:55]} 14. Nd5 {[%emt 0:00:03]} Bxb2 {[%emt 0:09:46]} 15. Nxe7+ {[%emt 0:00:04]} Kg7 {[%emt 0:00:23]} 16. Nxc8 {[%emt 0:02:36]} Raxc8 {[%emt 0:02:22]} 17. Rxd6 {[%emt 0:00:13]} Qc7 {[%emt 0:05:51]} 18. Qb6 {[%emt 0:06:07]} a3 {[%emt 0:03:10]} 19. Qxc7 {[%emt 0:10:14]} Rxc7 {[%emt 0:00:03]} 20. f4 {[%emt 0:00:06]} Re8 {[%emt 0:06:53]} 21. Bd3 {[%emt 0:02:50]} f6 {[%emt 0:04:22]} 22. h4 {[%emt 0:03:37]} Ree7 {[%emt 0:01:33]} 23. Rd5 {[%emt 0:14:26]} Red7 {[%emt 0:01:26]} 24. Kf2 {[%emt 0:07:43]} Kf8 {[%emt 0:04:21]} 25. g4 {[%emt 0:07:01]} h6 {[%emt 0:07:15]} 26. Kf3 {[%emt 0:02:45]} Kg7 {[%emt 0:03:06]} 27. Re1 {[%emt 0:00:31]} Rf7 {[%emt 0:01:40]} 28. Kg3 {[%emt 0:02:13]} Rfd7 {[%emt 0:01:19]} 29. e5 {[%emt 0:01:31]} fxe5 {[%emt 0:01:27]} 30. fxe5 {[%emt 0:00:04]} Rxd5 {[%emt 0:00:08]} 31. cxd5 {[%emt 0:00:02]} Rc3 {[%emt 0:00:05]} 32. Re3 {[%emt 0:01:52]} Bc1 {[%emt 0:00:08]} 33. Rf3 {[%emt 0:00:02]} g5 {[%emt 0:00:05]} 34. hxg5 {[%emt 0:00:19]} hxg5 {[%emt 0:00:04]} 35. Kf2 {[%emt 0:01:41]} Bf4 {[%emt 0:00:46]} 36. e6 {[%emt 0:00:10]} Rc7 {[%emt 0:02:29]} 37. Rxf4 {[%emt 0:00:31]} gxf4 {[%emt 0:00:09]} 38. d6 {[%emt 0:00:02]} Rc3 {[%emt 0:00:52]} 39. e7 {[%emt 0:00:34]} Kf7 {[%emt 0:00:33]} 40. Bg6+ {[%emt 0:00:04]} 1-0

[Event "Summer Prague Open-A 2024"]
[Site "Prague"]
[Date "2024.08.06"]
[Round "6.3"]
[White "Skypala, Ondrej"]
[Black "Pulpan, Jakub"]
[Result "0-1"]
[Annotator "RC"]
[ECO "A22"]
[WhiteElo "2230"]
[BlackElo "2378"]
[PlyCount "64"]
[EventDate "2024.08.02"]
[EventType "swiss"]
[EventCountry "CZE"]
[SourceTitle "playchess.com"]
[Source "ChessBase"]
[SourceQuality "1"]
[TimeControl "40/5400+30:1800+30"]

1. c4 {[%emt 0:00:04]} e5 {[%emt 0:00:34]} 2. Nc3 {[%emt 0:00:24]} Nf6 {[%emt 0:08:24]} 3. g3 {[%emt 0:00:29]} d5 {[%emt 0:02:13]} 4. cxd5 {[%emt 0:00:07]} Nxd5 {[%emt 0:00:04]} 5. Bg2 {[%emt 0:00:07]} Nb6 {[%emt 0:00:09]} 6. Nf3 {[%emt 0:00:06]} Nc6 {[%emt 0:00:11]} 7. O-O {[%emt 0:00:07]} Be7 {[%emt 0:00:27]} 8. a3 {[%emt 0:00:07]} O-O {[%emt 0:04:50]} 9. b4 {[%emt 0:00:16]} Be6 {[%emt 0:01:13]} 10. Rb1 {[%emt 0:01:59]} f6 {[%emt 0:09:02]} 11. d3 {[%emt 0:00:10]} Kh8 {[%emt 0:04:10]} 12. b5 {[%emt 0:04:14]} Nd4 {[%emt 0:04:24]} 13. Nd2 {[%emt 0:00:54]} c6 {[%emt 0:08:47]} 14. bxc6 {[%emt 0:07:23]} Nxc6 {[%emt 0:00:45]} 15. Nc4 {[%emt 0:09:09]} Nxc4 {[%emt 0:14:37]} 16. dxc4 {[%emt 0:00:09]} Qc8 {[%emt 0:00:25]} 17. Qa4 {[%emt 0:08:25]} Bd7 {[%emt 0:02:26]} 18. Qd1 {[%emt 0:12:45]} Bf5 {[%emt 0:04:49]} 19. Rb5 {[%emt 0:01:41]} a6 {[%emt 0:03:28]} 20. Rb6 {[%emt 0:01:20]} Bc5 {[%emt 0:06:16]} 21. Na4 {[%emt 0:00:12]} Rd8 {[%emt 0:01:33]} 22. Bd5 {[%emt 0:04:40]} Qc7 {[%emt 0:04:50]} 23. Rb3 {[%emt 0:08:45]} Ba7 {[%emt 0:03:57]} 24. e4 {[%emt 0:01:33]} Bxe4 {[%emt 0:01:24]} 25. Be3 {[%emt 0:01:27]} b5 {[%emt 0:07:41]} 26. Nc3 {[%emt 0:01:23]} bxc4 {[%emt 0:01:08]} 27. Rb2 {[%emt 0:01:51]} Bxd5 {[%emt 0:00:37]} 28. Nxd5 {[%emt 0:00:07]} Qa5 {[%emt 0:00:56]} 29. Bxa7 {[%emt 0:01:43]} Rxa7 {[%emt 0:02:42]} 30. Nb4 {[%emt 0:00:36]} Rxd1 {[%emt 0:00:58]} 31. Nxc6 {[%emt 0:00:05]} Rxf1+ {[%emt 0:00:06]} 32. Kxf1 {[%emt 0:00:03]} Qc7 {[%emt 0:00:11]} 0-1

[Event "Summer Prague Open-A 2024"]
[Site "Prague"]
[Date "2024.08.06"]
[Round "6.4"]
[White "Anwesh, Upadhyaya"]
[Black "Tynyshtyk, Diana"]
[Result "1-0"]
[Annotator "RC"]
[ECO "D71"]
[WhiteElo "2373"]
[BlackElo "1935"]
[PlyCount "67"]
[EventDate "2024.08.02"]
[EventType "swiss"]
[EventCountry "CZE"]
[SourceTitle "playchess.com"]
[Source "ChessBase"]
[SourceQuality "1"]
[TimeControl "40/5400+30:1800+30"]

1. d4 {[%emt 0:19:23]} Nf6 {[%emt 0:00:04]} 2. c4 {[%emt 0:00:24]} g6 {[%emt 0:00:03]} 3. g3 {[%emt 0:00:54]} c6 {[%emt 0:00:05]} 4. Nf3 {[%emt 0:00:35]} Bg7 {[%emt 0:00:10]} 5. Bg2 {[%emt 0:00:10]} d5 {[%emt 0:00:04]} 6. b3 {[%emt 0:00:28]} O-O {[%emt 0:04:52]} 7. O-O {[%emt 0:00:18]} dxc4 {[%emt 0:00:03]} 8. bxc4 {[%emt 0:00:13]} c5 {[%emt 0:00:00]} 9. Bb2 {[%emt 0:00:16]} Nc6 {[%emt 0:06:23]} 10. d5 {[%emt 0:06:16]} Na5 {[%emt 0:17:45]} 11. Nbd2 {[%emt 0:01:13]} b5 {[%emt 0:11:45]} 12. e4 {[%emt 0:08:18]} Nxc4 {[%emt 0:08:19]} 13. Nxc4 {[%emt 0:00:09]} bxc4 {[%emt 0:00:02]} 14. Qc2 {[%emt 0:02:25]} Rb8 {[%emt 0:05:27]} 15. Bc3 {[%emt 0:04:57]} a5 {[%emt 0:09:14]} 16. Ne5 {[%emt 0:02:58]} Bd7 {[%emt 0:04:34]} 17. Nxc4 {[%emt 0:04:36]} Bb5 {[%emt 0:01:52]} 18. Bxa5 {[%emt 0:02:07]} Qc8 {[%emt 0:01:06]} 19. a4 {[%emt 0:01:35]} Bxc4 {[%emt 0:06:06]} 20. Qxc4 {[%emt 0:00:22]} Nd7 {[%emt 0:00:12]} 21. Rab1 {[%emt 0:05:25]} Ne5 {[%emt 0:02:02]} 22. Qc2 {[%emt 0:02:18]} Ra8 {[%emt 0:04:10]} 23. Bb6 {[%emt 0:04:36]} Qa6 {[%emt 0:10:41]} 24. a5 {[%emt 0:02:50]} Rfc8 {[%emt 0:04:02]} 25. Bh3 {[%emt 0:08:15]} Re8 {[%emt 0:01:08]} 26. Rfc1 {[%emt 0:03:02]} Nf3+ {[%emt 0:00:52]} 27. Kg2 {[%emt 0:00:53]} Ng5 {[%emt 0:01:42]} 28. Bd7 {[%emt 0:00:46]} Red8 {[%emt 0:01:08]} 29. Bxd8 {[%emt 0:01:26]} Rxd8 {[%emt 0:00:22]} 30. h4 {[%emt 0:00:49]} Rxd7 {[%emt 0:00:32]} 31. Rb8+ {[%emt 0:00:26]} Bf8 {[%emt 0:00:01]} 32. hxg5 {[%emt 0:00:10]} Kg7 {[%emt 0:00:51]} 33. Qxc5 {[%emt 0:01:21]} Ra7 {[%emt 0:00:50]} 34. Qc8 {[%emt 0:00:26]} 1-0

[Event "Summer Prague Open-A 2024"]
[Site "Prague"]
[Date "2024.08.06"]
[Round "6.5"]
[White "Neuman, Petr"]
[Black "Golenia, Wojciech"]
[Result "1/2-1/2"]
[Annotator "RC"]
[ECO "A64"]
[WhiteElo "2426"]
[BlackElo "2212"]
[PlyCount "230"]
[EventDate "2024.08.02"]
[EventType "swiss"]
[EventCountry "CZE"]
[SourceTitle "playchess.com"]
[Source "ChessBase"]
[SourceQuality "1"]
[TimeControl "40/5400+30:1800+30"]

1. d4 {[%emt 0:00:30]} Nf6 {[%emt 0:05:27]} 2. c4 {[%emt 0:00:06]} e6 {[%emt 0:00:04]} 3. g3 {[%emt 0:00:10]} c5 {[%emt 0:00:12]} 4. d5 {[%emt 0:00:06]} exd5 {[%emt 0:00:09]} 5. cxd5 {[%emt 0:00:05]} d6 {[%emt 0:00:07]} 6. Bg2 {[%emt 0:00:13]} g6 {[%emt 0:00:09]} 7. Nf3 {[%emt 0:00:12]} Bg7 {[%emt 0:00:07]} 8. O-O {[%emt 0:00:13]} O-O {[%emt 0:00:06]} 9. Nc3 {[%emt 0:00:17]} Re8 {[%emt 0:00:06]} 10. Nd2 {[%emt 0:00:11]} a6 {[%emt 0:00:50]} 11. a4 {[%emt 0:00:06]} Nbd7 {[%emt 0:01:11]} 12. h3 {[%emt 0:03:55]} Rb8 {[%emt 0:15:07]} 13. a5 {[%emt 0:02:22]} b5 {[%emt 0:06:26]} 14. axb6 {[%emt 0:00:07]} Nxb6 {[%emt 0:01:27]} 15. Kh2 {[%emt 0:05:00]} Qc7 {[%emt 0:08:44]} 16. e4 {[%emt 0:18:17]} c4 {[%emt 0:12:25]} 17. Qc2 {[%emt 0:25:38]} Nfd7 {[%emt 0:08:06]} 18. Nf3 {[%emt 0:00:11]} Nc5 {[%emt 0:00:51]} 19. Be3 {[%emt 0:00:04]} Nxe4 {[%emt 0:13:10]} 20. Nxe4 {[%emt 0:01:49]} Nxd5 {[%emt 0:03:43]} 21. Nc3 {[%emt 0:00:23]} Nxe3 {[%emt 0:04:13]} 22. fxe3 {[%emt 0:00:56]} Bf5 {[%emt 0:02:58]} 23. Qa4 {[%emt 0:02:49]} Bd7 {[%emt 0:02:54]} 24. Qxa6 {[%emt 0:02:26]} Rxb2 {[%emt 0:00:40]} 25. Nd4 {[%emt 0:00:05]} Bc8 {[%emt 0:04:09]} 26. Qa3 {[%emt 0:00:05]} Rd2 {[%emt 0:03:22]} 27. Qc1 {[%emt 0:03:51]} Rd3 {[%emt 0:00:25]} 28. Ra8 {[%emt 0:02:06]} Qc5 {[%emt 0:01:04]} 29. Nd5 {[%emt 0:01:27]} Kf8 {[%emt 0:01:06]} 30. Qc2 {[%emt 0:02:39]} Bxd4 {[%emt 0:00:56]} 31. exd4 {[%emt 0:00:17]} Qxd4 {[%emt 0:00:08]} 32. Qf2 {[%emt 0:02:29]} Qxf2 {[%emt 0:01:13]} 33. Rxf2 {[%emt 0:00:03]} Be6 {[%emt 0:01:22]} 34. Nf4 {[%emt 0:00:14]} Rxa8 {[%emt 0:01:31]} 35. Bxa8 {[%emt 0:00:36]} Re3 {[%emt 0:01:45]} 36. Nxe6+ {[%emt 0:00:14]} Rxe6 {[%emt 0:00:01]} 37. Bd5 {[%emt 0:00:07]} Re7 {[%emt 0:00:17]} 38. Bxc4 {[%emt 0:00:05]} Rc7 {[%emt 0:00:33]} 39. Bd5 {[%emt 0:00:29]} Kg7 {[%emt 0:01:03]} 40. g4 {[%emt 0:00:51]} h6 {[%emt 0:01:18]} 41. Kg2 {[%emt 0:30:48]} Re7 {[%emt 0:06:18]} 42. Rf3 {[%emt 0:00:00]} f5 {[%emt 0:07:58]} 43. gxf5 {[%emt 0:00:00]} gxf5 {[%emt 0:00:01]} 44. Rxf5 {[%emt 0:00:00]} Re2+ {[%emt 0:02:31]} 45. Kg1 {[%emt 0:00:00]} Re1+ {[%emt 0:01:43]} 46. Kh2 {[%emt 0:00:00]} Re5 {[%emt 0:00:02]} 47. Rf7+ {[%emt 0:00:00]} Kg6 {[%emt 0:00:06]} 48. Bb3 {[%emt 0:00:00]} Re2+ {[%emt 0:00:20]} 49. Kg1 {[%emt 0:00:00]} Re3 {[%emt 0:00:25]} 50. Rb7 {[%emt 0:00:00]} Rxh3 {[%emt 0:00:19]} 51. Kf2 {[%emt 0:00:00]} Kf5 {[%emt 0:01:37]} 52. Bd5 {[%emt 0:00:00]} Rd3 {[%emt 0:01:14]} 53. Bf3 {[%emt 0:00:00]} Rd2+ {[%emt 0:01:45]} 54. Ke3 {[%emt 0:00:00]} Ra2 {[%emt 0:00:02]} 55. Be4+ {[%emt 0:00:00]} Ke6 {[%emt 0:00:21]} 56. Rb5 {[%emt 0:00:00]} Rh2 {[%emt 0:00:30]} 57. Bf3 {[%emt 0:00:00]} Rh4 {[%emt 0:00:32]} 58. Kf2 {[%emt 0:00:00]} Rf4 {[%emt 0:01:45]} 59. Kg3 {[%emt 0:00:00]} Rd4 {[%emt 0:01:43]} 60. Rh5 {[%emt 0:00:00]} d5 {[%emt 0:00:14]} 61. Rxh6+ {[%emt 0:00:00]} Ke5 {[%emt 0:00:30]} 62. Rh5+ {[%emt 0:00:00]} Kd6 {[%emt 0:00:21]} 63. Kf2 {[%emt 0:00:00]} Kc5 {[%emt 0:00:19]} 64. Rh8 {[%emt 0:00:00]} Kc4 {[%emt 0:00:40]} 65. Rc8+ {[%emt 0:00:00]} Kd3 {[%emt 0:00:22]} 66. Rc5 {[%emt 0:00:00]} Kd2 {[%emt 0:00:43]} 67. Bxd5 {[%emt 0:00:00]} Rf4+ {[%emt 0:01:00]} 68. Bf3 {[%emt 0:00:00]} Kd3 {[%emt 0:00:23]} 69. Ra5 {[%emt 0:00:00]} Kd4 {[%emt 0:01:03]} 70. Ra1 {[%emt 0:00:00]} Ke5 {[%emt 0:01:09]} 71. Ke3 {[%emt 0:00:00]} Rb4 {[%emt 0:00:46]} 72. Ra5+ {[%emt 0:00:00]} Ke6 {[%emt 0:00:39]} 73. Be4 {[%emt 0:00:00]} Rb2 {[%emt 0:01:19]} 74. Bd3 {[%emt 0:00:00]} Rb4 {[%emt 0:00:18]} 75. Bf5+ {[%emt 0:00:00]} Kd6 {[%emt 0:00:40]} 76. Be4 {[%emt 0:00:00]} Rb3+ {[%emt 0:00:39]} 77. Kf4 {[%emt 0:00:00]} Rb4 {[%emt 0:00:56]} 78. Ra6+ {[%emt 0:00:00]} Kc5 {[%emt 0:00:49]} 79. Ke5 {[%emt 0:00:00]} Kc4 {[%emt 0:00:54]} 80. Rc6+ {[%emt 0:00:00]} Kb3 {[%emt 0:00:37]} 81. Kd5 {[%emt 0:00:00]} Rb5+ {[%emt 0:00:45]} 82. Kd4 {[%emt 0:00:00]} Rb4+ {[%emt 0:00:24]} 83. Kd3 {[%emt 0:00:00]} Ka4 {[%emt 0:00:18]} 84. Rc5 {[%emt 0:00:00]} Rb3+ {[%emt 0:00:40]} 85. Kd4 {[%emt 0:00:00]} Rb4+ {[%emt 0:00:15]} 86. Ke3 {[%emt 0:00:00]} Rb3+ {[%emt 0:00:57]} 87. Bd3 {[%emt 0:00:00]} Kb4 {[%emt 0:00:32]} 88. Rc6 {[%emt 0:00:00]} Rc3 {[%emt 0:00:21]} 89. Ra6 {[%emt 0:00:00]} Ra3 {[%emt 0:00:33]} 90. Rb6+ {[%emt 0:00:00]} Kc5 {[%emt 0:00:32]} 91. Rb5+ {[%emt 0:00:00]} Kd6 {[%emt 0:00:44]} 92. Kd4 {[%emt 0:00:00]} Ra1 {[%emt 0:01:11]} 93. Rb6+ {[%emt 0:00:00]} Kc7 {[%emt 0:01:45]} 94. Rh6 {[%emt 0:00:00]} Rd1 {[%emt 0:00:15]} 95. Kc4 {[%emt 0:00:00]} Rc1+ {[%emt 0:00:42]} 96. Kb5 {[%emt 0:00:00]} Kd7 {[%emt 0:00:31]} 97. Bc4 {[%emt 0:00:00]} Ke7 {[%emt 0:00:41]} 98. Kc5 {[%emt 0:00:00]} Rd1 {[%emt 0:01:14]} 99. Bd5 {[%emt 0:00:00]} Rd2 {[%emt 0:00:30]} 100. Re6+ {[%emt 0:00:00]} Kd7 {[%emt 0:00:25]} 101. Rf6 {[%emt 0:00:00]} Re2 {[%emt 0:00:57]} 102. Ra6 {[%emt 0:00:05]} Rc2+ {[%emt 0:00:11]} 103. Bc4 {[%emt 0:00:06]} Ke7 {[%emt 0:00:11]} 104. Re6+ {[%emt 0:00:18]} Kd7 {[%emt 0:00:20]} 105. Rf6 {[%emt 0:00:06]} Ke8 {[%emt 0:00:41]} 106. Rf4 {[%emt 0:00:32]} Rb2 {[%emt 0:01:19]} 107. Bd5 {[%emt 0:00:11]} Ke7 {[%emt 0:00:39]} 108. Rf7+ {[%emt 0:00:27]} Ke8 {[%emt 0:00:11]} 109. Rh7 {[%emt 0:00:06]} Kf8 {[%emt 0:00:23]} 110. Kd6 {[%emt 0:00:12]} Rb6+ {[%emt 0:00:47]} 111. Ke5 {[%emt 0:00:07]} Ke8 {[%emt 0:01:40]} 112. Be6 {[%emt 0:00:20]} Kd8 {[%emt 0:00:12]} 113. Rd7+ {[%emt 0:00:12]} Kc8 {[%emt 0:00:18]} 114. Rd6+ {[%emt 0:00:25]} Kc7 {[%emt 0:00:10]} 115. Rxb6 {[%emt 0:00:04]} Kxb6 {[%emt 0:00:02]} 1/2-1/2

[Event "Summer Prague Open-A 2024"]
[Site "Prague"]
[Date "2024.08.06"]
[Round "6.6"]
[White "Persson, Andreas"]
[Black "Garcia Roman, Daniel"]
[Result "0-1"]
[Annotator "RC"]
[ECO "A46"]
[WhiteElo "2139"]
[BlackElo "2397"]
[PlyCount "82"]
[EventDate "2024.08.02"]
[EventType "swiss"]
[EventCountry "CZE"]
[SourceTitle "playchess.com"]
[Source "ChessBase"]
[SourceQuality "1"]
[TimeControl "40/5400+30:1800+30"]

1. d4 {[%emt 0:00:03]} Nf6 {[%emt 0:04:40]} 2. Nf3 {[%emt 0:00:22]} d5 {[%emt 0:00:35]} 3. g3 {[%emt 0:00:27]} c5 {[%emt 0:00:19]} 4. Bg2 {[%emt 0:00:53]} cxd4 {[%emt 0:00:31]} 5. O-O {[%emt 0:00:27]} h6 {[%emt 0:01:11]} 6. b3 {[%emt 0:00:27]} g6 {[%emt 0:03:21]} 7. Bb2 {[%emt 0:03:33]} Bg7 {[%emt 0:00:26]} 8. Bxd4 {[%emt 0:08:26]} Nc6 {[%emt 0:03:32]} 9. Bb2 {[%emt 0:00:45]} O-O {[%emt 0:06:04]} 10. Na3 {[%emt 0:03:23]} Qa5 {[%emt 0:06:15]} 11. Qc1 {[%emt 0:11:15]} Rd8 {[%emt 0:12:25]} 12. Rd1 {[%emt 0:05:25]} Ne4 {[%emt 0:04:48]} 13. Bxg7 {[%emt 0:03:23]} Kxg7 {[%emt 0:00:06]} 14. c4 {[%emt 0:08:01]} Nc3 {[%emt 0:01:33]} 15. Qb2 {[%emt 0:02:28]} d4 {[%emt 0:10:01]} 16. Rd2 {[%emt 0:06:35]} e5 {[%emt 0:01:56]} 17. Nc2 {[%emt 0:01:10]} Ne4 {[%emt 0:13:56]} 18. b4 {[%emt 0:03:01]} Qc7 {[%emt 0:02:51]} 19. Rdd1 {[%emt 0:01:54]} Nc3 {[%emt 0:01:47]} 20. Rd2 {[%emt 0:00:44]} Ne4 {[%emt 0:00:55]} 21. Rdd1 {[%emt 0:00:23]} Nc3 {[%emt 0:00:30]} 22. Rd2 {[%emt 0:00:30]} Bg4 {[%emt 0:01:20]} 23. e3 {[%emt 0:08:16]} Ne4 {[%emt 0:01:45]} 24. Rd3 {[%emt 0:01:58]} Nf6 {[%emt 0:07:53]} 25. Rd2 {[%emt 0:08:44]} Bxf3 {[%emt 0:00:34]} 26. Bxf3 {[%emt 0:00:13]} e4 {[%emt 0:00:06]} 27. Bg2 {[%emt 0:00:52]} d3 {[%emt 0:00:14]} 28. Na3 {[%emt 0:04:10]} Qe5 {[%emt 0:00:43]} 29. Rb1 {[%emt 0:01:51]} Qxb2 {[%emt 0:07:24]} 30. Rbxb2 {[%emt 0:00:06]} Ne5 {[%emt 0:01:56]} 31. b5 {[%emt 0:04:40]} Rac8 {[%emt 0:00:42]} 32. Rb4 {[%emt 0:00:12]} Rc5 {[%emt 0:03:23]} 33. Ra4 {[%emt 0:00:41]} Rdc8 {[%emt 0:00:27]} 34. Rxa7 {[%emt 0:01:23]} Nxc4 {[%emt 0:00:08]} 35. Nxc4 {[%emt 0:00:28]} Rxc4 {[%emt 0:00:02]} 36. Bxe4 {[%emt 0:00:57]} Nxe4 {[%emt 0:00:36]} 37. Rxd3 {[%emt 0:00:07]} Rc1+ {[%emt 0:01:33]} 38. Kg2 {[%emt 0:00:07]} R1c2 {[%emt 0:00:23]} 39. Kf3 {[%emt 0:01:23]} Re8 {[%emt 0:00:49]} 40. Rxb7 {[%emt 0:00:32]} Rxf2+ {[%emt 0:00:36]} 41. Kg4 {[%emt 0:30:07]} h5+ {[%emt 0:30:28]} 0-1

[Event "Summer Prague Open-A 2024"]
[Site "Prague"]
[Date "2024.08.06"]
[Round "6.7"]
[White "Camarena Jimenez, Rufino"]
[Black "Czaeczine, Anne"]
[Result "1-0"]
[Annotator "NA RC"]
[ECO "D37"]
[WhiteElo "2279"]
[BlackElo "2172"]
[PlyCount "105"]
[EventDate "2024.08.02"]
[EventType "swiss"]
[EventCountry "CZE"]
[SourceTitle "playchess.com"]
[Source "ChessBase"]
[SourceQuality "1"]
[TimeControl "40/5400+30:1800+30"]

1. d4 Nf6 2. c4 e6 3. Nf3 d5 4. Nc3 dxc4 5. e3 a6 6. Bxc4 b5 7. Bb3 Bb7 8. O-O c5 9. e4 cxd4 10. Nxd4 Nbd7 11. Re1 Ne5 12. Bf4 Bd6 13. Nf5 exf5 14. exf5 O-O 15. Bxe5 Bxe5 16. Rxe5 Qc7 17. Re3 Qf4 18. h3 Qxf5 19. Re7 Bc6 20. Qd6 Rac8 21. Rae1 Ba8 22. R1e3 b4 23. Qxb4 Rcd8 24. R7e5 Qc8 25. Qh4 Qc6 26. Rg3 Rd3 27. Reg5 Rxg3 28. Rxg3 Re8 29. Qg5 g6 30. Qd2 Re5 31. Rg5 Rxg5 32. Qxg5 Kg7 33. f3 Qb6+ 34. Kh2 Qd4 35. Nd1 Nh5 36. Qe3 Qd6+ 37. Kg1 Nf4 38. Nf2 Ne6 39. Bxe6 Qxe6 40. Qxe6 fxe6 41. Nd3 Kf6 42. Kf2 h5 43. h4 e5 44. Ke3 Kf5 45. Nc5 a5 46. a3 g5 47. hxg5 Kxg5 48. b4 axb4 49. axb4 Bc6 50. Ne4+ Kf5 51. b5 Bd5 52. b6 Ke6 53. b7 1-0

[Event "Summer Prague Open-A 2024"]
[Site "Prague"]
[Date "2024.08.06"]
[Round "6.8"]
[White "Jedlicka, Ales"]
[Black "Veleshnja, Zino"]
[Result "0-1"]
[Annotator "NA RC"]
[ECO "A40"]
[WhiteElo "2126"]
[BlackElo "2252"]
[PlyCount "84"]
[EventDate "2024.08.02"]
[EventType "swiss"]
[EventCountry "CZE"]
[SourceTitle "playchess.com"]
[Source "ChessBase"]
[SourceQuality "1"]
[TimeControl "40/5400+30:1800+30"]

1. d4 {[%emt 0:00:07]} Nf6 {[%emt 0:00:13]} 2. c4 {[%emt 0:00:16]} e6 {[%emt 0:00:05]} 3. g3 {[%emt 0:00:15]} Bb4+ {[%emt 0:00:10]} 4. Bd2 {[%emt 0:00:14]} Qe7 {[%emt 0:00:13]} 5. Bg2 {[%emt 0:00:21]} Nc6 {[%emt 0:00:34]} 6. e3 {[%emt 0:00:44]} Bxd2+ {[%emt 0:02:14]} 7. Nxd2 {[%emt 0:03:20]} O-O {[%emt 0:01:42]} 8. Ne2 {[%emt 0:00:40]} d6 {[%emt 0:02:14]} 9. O-O {[%emt 0:02:15]} e5 {[%emt 0:02:56]} 10. d5 {[%emt 0:00:16]} Nb8 {[%emt 0:00:38]} 11. Nc3 {[%emt 0:01:00]} h5 {[%emt 0:02:18]} 12. h4 {[%emt 0:08:06]} Bg4 {[%emt 0:04:52]} 13. Qb1 {[%emt 0:00:46]} a5 {[%emt 0:05:19]} 14. Nde4 {[%emt 0:04:57]} Nxe4 {[%emt 0:03:50]} 15. Nxe4 {[%emt 0:00:29]} Bf5 {[%emt 0:04:49]} 16. Qd1 {[%emt 0:01:47]} Bxe4 {[%emt 0:03:24]} 17. Bxe4 {[%emt 0:01:12]} f5 {[%emt 0:00:50]} 18. Bg2 {[%emt 0:05:36]} g6 {[%emt 0:01:15]} 19. b3 {[%emt 0:03:59]} Nd7 {[%emt 0:02:39]} 20. a3 {[%emt 0:00:13]} e4 {[%emt 0:06:34]} 21. b4 {[%emt 0:09:17]} Ne5 {[%emt 0:01:58]} 22. Qe2 {[%emt 0:01:21]} axb4 {[%emt 0:01:48]} 23. axb4 {[%emt 0:00:13]} Nd3 {[%emt 0:01:18]} 24. Rxa8 {[%emt 0:02:32]} Rxa8 {[%emt 0:00:53]} 25. f3 {[%emt 0:01:39]} Qe5 {[%emt 0:09:41]} 26. fxe4 {[%emt 0:01:28]} Qxg3 {[%emt 0:08:02]} 27. exf5 {[%emt 0:01:43]} Ne5 {[%emt 0:03:29]} 28. Qf2 {[%emt 0:24:53]} Qxf2+ {[%emt 0:01:05]} 29. Rxf2 {[%emt 0:00:33]} Ng4 {[%emt 0:02:38]} 30. Rf3 {[%emt 0:10:49]} Ra1+ {[%emt 0:04:24]} 31. Bf1 {[%emt 0:04:37]} gxf5 {[%emt 0:00:42]} 32. Kg2 {[%emt 0:00:59]} Kg7 {[%emt 0:06:52]} 33. Kg3 {[%emt 0:02:10]} Ra3 {[%emt 0:02:48]} 34. Be2 {[%emt 0:03:00]} Ra2 {[%emt 0:03:55]} 35. Bd3 {[%emt 0:00:51]} Ne5 {[%emt 0:00:54]} 36. Bb1 {[%emt 0:02:54]} Ra1 {[%emt 0:00:14]} 37. Rf1 {[%emt 0:00:19]} Nxc4 {[%emt 0:00:32]} 38. Kf2 {[%emt 0:02:39]} Nd2 {[%emt 0:01:56]} 39. Rg1+ {[%emt 0:00:08]} Kf6 {[%emt 0:00:08]} 40. Bd3 {[%emt 0:00:51]} Rxg1 {[%emt 0:00:16]} 41. Kxg1 {[%emt 0:30:11]} Nf3+ {[%emt 0:30:12]} 42. Kf2 {[%emt 0:00:42]} Nxh4 {[%emt 0:00:11]} 0-1